Cogmind - Beta 14 *** ADVENTURER MODE // 2024.08.07 @ 18:41:40 Player: Vexic Result: Destroyed by RT-BX2(R) with Subdweller Beam Cannon Performance ------------- Evolutions (0) 0 Regions Visited (2) 400 Robots Destroyed (21) 105 Value Destroyed (426) 426 Prototype IDs (2) 40 Alien Tech Used (0) 0 Bonus (0) 0 TOTAL SCORE: 971 Bonus ------- None Cogmind --------- Core Integrity 0/250 Matter 258/300 Energy 65/100 System Corruption 1% Temperature Cool (9) Movement Core (50) Location -10/Subcaves Parts ------- > --- POWER (1) -------- (None) > --- PROPULSION (2) --- (None) > --- UTILITY (2) ------ (None) > --- WEAPON (2) ------- Beam Cannon > --- INVENTORY (5) ---- Light Treads Light Treads Beam Cannon Datajack Peak State ------------ > --- POWER ------------ Ion Engine > --- PROPULSION ------- Myomer Leg Myomer Leg > --- UTILITY ---------- Scrap Shield > --- WEAPON ----------- Beam Cannon Beam Cannon > --- INVENTORY -------- Light Treads Light Treads Beam Cannon Beam Cannon Datajack [Rating: 21] Favorites ----------- Power Ion Engine Engine Ion Engine Propulsion Light Treads Treads Light Treads Leg Myomer Leg Utility Small Storage Unit Device Improved Heat Sink Storage Small Storage Unit Processor Visual Processing Unit Protection Scrap Shield Weapon Beam Cannon Energy Gun Small Laser Energy Cannon Beam Cannon Ballistic Gun Heavy Battle Rifle Special Melee Weapon Datajack Build | -11 -10 -10 ------- Run | Yrd Mat Sub Slots Evolved . | . . . Power . | . . . Propulsion . | . . . Utility . | . . . Weapon . | . . . Parts Attached 17 | 6 5 6 Power 2 | 1 1 . Engine 2 | 1 1 . Core . | . . . Reactor . | . . . Propulsion 4 | 2 . 2 Treads 2 | 2 . . Leg 2 | . . 2 Wheel . | . . . Hover . | . . . Flight . | . . . Utility 4 | 1 2 1 Device 1 | . 1 . Storage 1 | 1 . . Processor 1 | . 1 . Hackware . | . . . Protection 1 | . . 1 Artifact . | . . . Weapon 7 | 2 2 3 Energy Gun 2 | 2 . . Energy Cannon 3 | . 2 1 Ballistic Gun 1 | . . 1 Ballistic Cannon . | . . . Launcher . | . . . Special Weapon . | . . . Impact Weapon . | . . . Slashing Weapon . | . . . Piercing Weapon . | . . . Special Melee Weapon 1 | . . 1 Unidentified Prototypes . | . . . Parts Lost 7 | . . 7 Power 1 | . . 1 Propulsion 2 | . . 2 Utility 1 | . . 1 Weapon 3 | . . 3 Highest Loss Streak 4 | . . 4 To Critical Strikes . | . . . Average Slot Usage (%) 92 | . 98 65 Engine 12 | . 14 7 Treads 23 | . 28 2 Leg 3 | . . 23 Device 4 | . 5 . Storage 11 | . 14 . Processor 5 | . 7 . Energy Cannon 26 | . 27 19 Peak Build Rating 21 | 6 9 21 Average Rating 9 | 5 8 17 On Entrance 5 | . 6 9 Naked Turns . | . . . Heaviest Build 29 | 12 17 29 Greatest Support 50 | 40 40 50 Greatest Overweight (x) 1 | 1 . . Average Overweight (x) . | . . . Largest Inventory Capacity 8 | 8 8 8 Average Capacity 7 | 7 8 5 Most Carried 6 | . 4 6 Average Carried 2 | . 2 4 Final Capacity 8 | 8 8 5 Final Carried 4 | . 3 4 Class Distribution -------------------- 100% | Mutant Dominant Class ---------------- Mutant | -10/Materials Mutant | -10/Subcaves Resources | -11 -10 -10 ----------- Run | Yrd Mat Sub Matter Collected 330 | 260 60 10 Remotely . | . . . Salvage Created 629 | . 401 228 Parts 48 | . 37 11 Haulers Intercepted 2 | . 2 . Recyclers Shooed . | . . . Parts Field Recycled . | . . . Retrieved Matter . | . . . Parts Self-Destructed . | . . . Prevented . | . . . Kills | -11 -10 -10 ------- Run | Yrd Mat Sub Combat Hostiles Destroyed 13 | . 8 5 Guns 1 | . . 1 Cannons 12 | . 8 4 Classes Destroyed 8 | . 7 1 Worker 1 | . 1 . Builder 1 | . 1 . Tunneler 1 | . 1 . Hauler 2 | . 2 . Watcher 3 | . 3 . Swarmer 6 | . 6 . Grunt 2 | . 2 . Subdweller 5 | . . 5 Best Kill Streak 5 | . 5 4 Combat Bots Only 4 | . 3 4 Max Kills in Single Turn 1 | . 1 1 Gunslinging . | . . . Exploded . | . . . Melee . | . . . Uniques/NPCs Destroyed . | . . . Combat | -11 -10 -10 -------- Run | Yrd Mat Sub Hostile Shots Fired 132 | . 26 106 Missed 40 | . 6 34 Damage Taken 1389 | . 143 1246 Core 264 | . 22 242 Absorbed by Shields . | . . . Ignored by Resistances 393 | . 47 346 Core Remaining (%) 100 | 100 . . Volleys Fired 50 | . 30 20 Largest 2 | . 2 2 Hottest 120 | . 120 120 Shots Fired 93 | . 61 32 Gun 9 | . . 9 Cannon 84 | . 61 23 Launcher . | . . . Special . | . . . Kinetic 9 | . . 9 Thermal 84 | . 61 23 Explosive . | . . . Electromagnetic . | . . . Robot Hit Streak 26 | . 6 26 Robot Miss Streak 3 | . 3 1 Penetration Max . | . . . Secondary Targets . | . . . Shots Hit Robots 59 | . 32 27 Core Hits 28 | . 17 11 Critical Kills . | . . . Critical Parts Destroyed . | . . . Critical Strikes . | . . . Melee Attacks 1 | . . 1 Impact . | . . . Slashing . | . . . Piercing . | . . . Sneak Attacks . | . . . Combat Hostiles . | . . . Follow-up Attacks . | . . . Damage Inflicted 1134 | . 650 484 Guns 136 | . . 136 Cannons 998 | . 650 348 Explosions . | . . . Melee . | . . . Ramming . | . . . Kinetic 136 | . . 136 Thermal 998 | . 650 348 Explosive . | . . . Electromagnetic . | . . . Impact . | . . . Slashing . | . . . Piercing . | . . . Highest Corruption 1 | . 1 1 Average Corruption 1 | . 1 1 Corruption Purged . | . . . Corruption Blocked . | . . . Effects 9 | . 7 2 Message Errors 3 | . 3 . Matter Fused 1 | . 1 . Heat Flow Errors 1 | . 1 . Parts Fused 1 | . . 1 Data Loss (minor) 2 | . 1 1 Misfires 1 | . 1 . Overload Shots . | . . . Overflow Damage 6 | . 6 . Projectiles 6 | . 6 . Explosions . | . . . Melee . | . . . Knockbacks . | . . . Impact . | . . . Kinetic . | . . . Secondary . | . . . Self-Inflicted Damage . | . . . Shots . | . . . Rammed . | . . . Targets Rammed . | . . . Kicked . | . . . Crushed . | . . . Highest Temperature 300 | . 300 81 Average Temperature 108 | . 117 25 Received Heat Transfer 474 | . 6 468 Siege Activations . | . . . Robots Corrupted . | . . . Combat Hostiles . | . . . Parts Fried . | . . . Impact Corruptions . | . . . Robots Melted . | . . . Combat Hostiles . | . . . Parts Melted 2 | . . 2 Heat Transferred 2109 | . 1369 740 Parts Sabotaged . | . . . Parts Stolen . | . . . Parts Stripped . | . . . Power Chain Reactions . | . . . Alert | -11 -10 -10 ------- Run | Yrd Mat Sub Peak Influence 250 | . 250 . Initial . | . . . Average 76 | . 83 . Maximum Alert Level 1 | . 1 . Low Security (%) 85 | 100 83 . Level 1 14 | . 16 . Level 2 . | . . . Level 3 . | . . . Level 4 . | . . . Level 5 . | . . . High Security . | . . . Max Security . | . . . Squads Dispatched . | . . . Investigation . | . . . Extermination . | . . . Reinforcement . | . . . Assault . | . . . Garrison . | . . . Intercept . | . . . Searches Triggered . | . . . Construction Impeded . | . . . Haulers Reinforced . | . . . Active Scanning Responses . | . . . Cargo Convoy Interrupts . | . . . Stealth | -11 -10 -10 --------- Run | Yrd Mat Sub Distress Signals . | . . . Communications Jammed . | . . . Distress Signals . | . . . Times Spotted 24 | . 14 10 Peak Tracking Total 9 | . 3 9 Tactical Retreats . | . . . Traps | -11 -10 -10 ------- Run | Yrd Mat Sub Traps Triggered 2 | . 2 . Indirectly . | . . . Trap Hack Attempts . | . . . Triggered . | . . . Disarmed . | . . . Reprogrammed . | . . . Reused . | . . . Traps Extracted . | . . . Installed . | . . . Triggered . | . . . Machines | -11 -10 -10 ---------- Run | Yrd Mat Sub Machines Disabled 3 | . 3 . Max in Single Turn 1 | . 1 . Machines Repaired . | . . . Machines Dismantled . | . . . Machines Sabotaged . | . . . Overloaded Fab Kills . | . . . Hacking | -11 -10 -10 --------- Run | Yrd Mat Sub Machines Accessed 8 | . 8 . Terminals 7 | . 7 . Fabricators . | . . . Repair Stations . | . . . Recycling Units 1 | . 1 . Scanalyzers . | . . . Garrison Access . | . . . Total Hacks 29 | . 29 . Successful 15 | . 15 . Failed 14 | . 14 . Catastrophic 3 | . 3 . Database Lockouts . | . . . Manual 2 | . 2 . Terminals 28 | . 28 . Fabricators . | . . . Repair Stations . | . . . Recycling Units 1 | . 1 . Scanalyzers . | . . . Garrison Access . | . . . Terminal Hacks 14 | . 14 . Prototype ID Bank 1 | . 1 . Terminal Index 1 | . 1 . Unreport Threat 1 | . 1 . Locate Traps 2 | . 2 . Dispatch Records 1 | . 1 . Maintenance Status 1 | . 1 . Transport Status 2 | . 2 . Investigation Status 1 | . 1 . Hauler Manifests 1 | . 1 . Zone Layout 3 | . 3 . Fabricator Hacks . | . . . Repair Station Hacks . | . . . Recycling Unit Hacks 1 | . 1 . Report Inventory 1 | . 1 . Scanalyzer . | . . . Garrison Access Hacks . | . . . Unauthorized Hacks . | . . . Terminals . | . . . Fabricators . | . . . Repair Stations . | . . . Recycling Units . | . . . Scanalyzers . | . . . Garrison Access . | . . . Data Cores Recovered . | . . . Used . | . . . Hacking Detections 7 | . 7 . Full Trace Events 3 | . 3 . Feedback Events . | . . . Feedback Blocked . | . . . Robot Schematics Acquired . | . . . Robots Built . | . . . Authchips . | . . . Time . | . . . Total Robot Build Rating . | . . . Part Schematics Acquired . | . . . Parts Built . | . . . Authchips . | . . . Time . | . . . Total Part Build Rating . | . . . Parts Repaired . | . . . Time . | . . . Parts Recycled . | . . . Recycled Matter . | . . . Retrieved Matter . | . . . Retrieved Components . | . . . Parts Scanalyzed . | . . . Part Schematics Acquired . | . . . Parts Damaged . | . . . Bothacking | -11 -10 -10 ------------ Run | Yrd Mat Sub Used RIF Installer . | . . . Robots Hacked 1 | . . 1 Non-combat . | . . . Combat 1 | . . 1 Robot Hacks Applied 1 | . . 1 parse_system 1 | . . 1 Relay Couplers Released . | . . . Fabnet Peak Effective % . | . . . Robots Rewired . | . . . Allies Hacked . | . . . Hacks Repelled . | . . . Allies | -11 -10 -10 -------- Run | Yrd Mat Sub Total Allies . | . . . Largest Group . | . . . Highest-Rated Group . | . . . Highest-Rated Ally . | . . . Total Orders . | . . . Ally Attacks . | . . . Total Damage . | . . . Kills . | . . . Allies Corrupted . | . . . Allies Melted . | . . . Intel | -11 -10 -10 ------- Run | Yrd Mat Sub Robot Analysis Total . | . . . Derelict Logs Recovered . | . . . Drone Launches . | . . . Drone Recoveries . | . . . Exploration | -11 -10 -10 ------------- Run | Yrd Mat Sub Turns Passed 1339 | 98 1048 193 Spaces Moved 717 | 41 580 96 Core 10 | 10 . . Treads 617 | 31 580 6 Legs 90 | . . 90 Wheels . | . . . Hover . | . . . Flight . | . . . Fastest Speed 50 | 50 160 120 Average Speed 153 | 140 160 122 Slowest Speed 160 | 160 160 160 Overloaded Moves . | . . . Propulsion Burnouts . | . . . Robots Hopped . | . . . Cave-ins Triggered . | . . . Exploration Rate (%) 37 | 5 96 10 Regions Visited 2 Branch Regions 1 Pre-discovered Areas . | . . . Known Exits Taken . | . . . Unknown Exits Taken 2 | 1 1 . Scrap Searched . | . . . Spaces Dug . | . . . Terrain Destroyed . | . . . Melee . | . . . Projectile . | . . . AOE . | . . . Terrain Rammed . | . . . Walls Destroyed . | . . . Machines Disabled . | . . . Actions | -11 -10 -10 --------- Run | Yrd Mat Sub Total 857 | 79 640 138 Wait 62 | 33 19 10 Move 715 | 40 579 96 Hop . | . . . Pick Up 6 | . 3 3 Fast Attach 11 | 6 4 1 Attach 2 | . . 2 Detach 1 | . . 1 Swap 4 | . 1 3 Drop 5 | . 4 1 Fire 50 | . 30 20 Melee 1 | . . 1 Ram . | . . . Kick . | . . . Crush . | . . . Escape Stasis . | . . . Rewire . | . . . Trap . | . . . Miscellaneous . | . . . Route ------- -11/Scrapyard -10/Materials (discovered 5 exits: [*Mat x3] / [*Min] / [*Sub]) -10/Subcaves History --------- Turn | Location | Event 8 | -11/Scrapyard | Discovered new exit (range 15) 99 | -11/Scrapyard | Entered Materials 219 | -10/Materials | Discovered new exit (range 17) 242 | -10/Materials | Discovered new exit (range 17) 315 | -10/Materials | Build established: Mutant 371 | -10/Materials | Discovered new exit (range 11) 711 | -10/Materials | Discovered new exit (range 18) 1075 | -10/Materials | Discovered new exit (range 7) 1147 | -10/Materials | Entered Subcaves 1149 | -10/Subcaves | Ambushed by Subdwellers from Twisted Machinery 1174 | -10/Subcaves | A swath of the cavern ceiling suddenly collapsed 1201 | -10/Subcaves | Ambushed by swarm of Subdwellers 1240 | -10/Subcaves | Shifting Twisted Machinery released Mak. Laser 1243 | -10/Subcaves | Shifting Twisted Machinery released Hvy. Battle Rifle 1256 | -10/Subcaves | Core integrity fell below 50% 1273 | -10/Subcaves | Lost 3 parts (1p1u1w) 1329 | -10/Subcaves | Core integrity fell below 20% 1340 | -10/Subcaves | Destroyed by RT-BX2(R) with Subdweller Beam Cannon Last Messages --------------- 01232_ Beam Cannon destroyed. Mak. Laser falls loose from the Twisted Machinery. 01242_ Ion Engine destroyed. Hvy. Battle Rifle falls loose from the Twisted Machinery. 01250_ Acquired Hvy. Battle Rifle. 01303_ System corrupted: Component data lost. 01304_ O8-HQ2(R) destroyed. 01314_ Beam Cannon destroyed. 01316_ Jacked EJ-J6H(R)... >>parse_system Reading system data... 01319_ EJ-J6H(R) destroyed. 01327_ Hvy. Battle Rifle destroyed. 01328_ DR-D4F(R) affixes Scrap Shield Fragment to Scrap Shield. 01329_ Sub. Monowheel melted. 01329_ 3S-PX8(R) destroyed. 01329_ DR-D4F(R) affixes Scrap Shield Fragment to Scrap Shield. 01333_ Sub. Optics melted. 01333_ 0I-5RX(R) destroyed. 01337_ Myomer Leg destroyed. Map ----- +----------------------------------------------------+ | | | | | | | | | | | | | ?????????????????????????????????????????????????? | | ?????????????????????????????????????????????????? | | ?????????????????????????????????????????????????? | | ?????????????????????????????????????????????????? | | ?????????????????????????????????????????????????? | | ?????????????????????????????????????????????????? | | ?????????????????????????????????????????????????? | | ?????????????????????????????????????????????????? | | ?????????????????????????????????????????????????? | | ?????????????????????????????????????????????????? | | ?????????????????????????????????????????????????? | | ?????????????????????????????????????????????????? | | ?????????????????????????????????????????????????? | | ?????????????????????????????????????????????????? | | ???????????####??????????????????????????????????? | | ???????????#! ########???????????????????????????? | | ???????????#! ! """""#??????????????????????????? | | ?????????### %! "" " ##????????????????????????? | | ? ??#????# ! #### #;###?????????????????????? | | # #??## """#?## #R@%#?????????????????????? | | #"#"??# %##?#""RRR##?????????????????????? | | ?# """## # ##?#""#!R[#?????????????????????? | | ?????# """# "#?# "##&%######?##?????????????? | | ?????# "## #### " =### ## #?????????????? | | ????###"#" #"#### #??????????????? | | ???## ##"# "#??## ##?????????????? | | ???? # ###### "##??# ## #?????????????? | | ?????# # #???## " ##?# ### ##?????????????? | | ?????# ##### " ## ## #?????????????? | | ??????# " " #### ### ###?????????????? | | ????### " #?# ### #???????????????? | | ????# "## #?##### ##??????????????? | | ????### ## ##?# #???# ##?????????????? | | ????## ### #???##???# #?????????????? | | ????# ##?## ###?????## #?????????????? | | ?#### ##???# #??????## #?????????????? | | ?# ##???? ??????## #?????????????? | | ?## ##??### ### ????## ## #?????????????? | | ??# #??## ##### #????# ####?????????????? | | ??# ##?# # ## #????# ##??????????????? | | ?## ### #?# ????## #??????????????? | | ?# ## ? ##?????????# #??????????????? | | ?## #### ???##??????????# #??????????????? | | ??## #### #????????????##### #??????????????? | +----------------------------------------------------+ Best States ------------- Heat Dissipation 39 Energy Generation 10 Energy Capacity 250 Matter Stores 300 Matter Capacity 300 Sight Range 18 Terrain Scan Density 10 Armor Coverage 800 Resistance: KI 20 Resistance: TH 20 Resistance: EX 20 Resistance: EM 20 Resistance: I 20 Resistance: S 20 Resistance: P 20 Evasion (%) 55 Recoil Reduction 2 Offensive Hacking 10 Item Schematics ----------------- None Robot Schematics ------------------ None Fabricated ------------ Nothing Alien Tech Used ----------------- None Achievements -------------- None Challenges ------------ None Game ------ Seed CombatSuperdenseCarapace Manual? 0 Play Time 00:13:32 Cumulative 16.1 hours Start 2024.08.07 @ 18:28:57 End 2024.08.07 @ 18:41:40 Sessions 1 Manual Loads 0 Difficulty Adventurer Special Mode None Game No. 39 Rogue 37 Adventurer 2 Explorer 0 Win Type - Total 0 Types 0/0/0/0/0/0/0/0/0 Lore% 9 Gallery% 19 Achievement% 25 Wizard Run 0 Options --------- Layout 0 ASCII 0 Keyboard 0 Movement Mouse Keybinds 0 Fullscreen 1 Font 36/Smallcaps Map View 76x50 Zoom Use 0% Tactical HUD 1 Map Filters NONE Filters NONE Steam 1 RUN: 480e7864-ebb0-45d6-898d-0343b814a8d2